bitfinex/quotes_SOLUSD_20260118
["timestamp","ask_amount","ask_price","bid_price","bid_amount"]
[1768731429658,3.0362646,142.25,142.23,7.03079419]
[1768731430567,3.0362646,142.25,142.23,10.14926072]
[1768731434171,3.0362646,142.26,142.23,10.14926072]
[1768731434369,5.16234538,142.26,142.23,10.14926072]
[1768731435470,3.0362646,142.26,142.23,10.14926072]
[1768731435636,5.16234538,142.26,142.23,10.14926072]
[1768731437367,3.0362646,142.26,142.23,10.14926072]
[1768731437667,5.16234538,142.26,142.23,10.14926072]
[1768731445166,12.1917415,142.26,142.23,10.14926072]
[1768731448969,5.16234538,142.26,142.23,10.14926072]
[1768731462304,5.13894727,142.25,142.21,3.11719074]
[1768731462476,2.12608078,142.24,142.21,3.11719074]
[1768731463762,5.13894727,142.24,142.21,3.11719074]
[1768731464496,12.16943265,142.24,142.21,3.11719074]
[1768731464866,2.12608078,142.23,142.21,3.11719074]
[1768731465182,2.08854359,142.23,142.21,3.11719074]
[1768731465866,12.1323412,142.23,142.2,3.11719074]
[1768731466067,3.01286649,142.22,142.2,3.11719074]
[1768731467784,2.9753293,142.22,142.2,3.11719074]
[1768731468069,2.94434495,142.22,142.2,3.11719074]
[1768731468282,2.8887965,142.22,142.2,3.11719074]
[1768731469184,5.01487728,142.22,142.2,3.11719074]
[1768731469389,2.12608078,142.22,142.18,10.15032904]
[1768731469977,2.12608078,142.22,142.18,7.0331383]
[1768731470180,5.13894727,142.22,142.19,3.11719074]
[1768731470493,12.1706194,142.22,142.19,3.11719074]
[1768731470889,10.04453862,142.22,142.19,3.11719074]
[1768731471071,12.1706194,142.22,142.19,3.11719074]
[1768731473391,12.17204177,142.22,142.19,3.11719074]
[1768731474985,12.13044273,142.22,142.19,3.11719074]
[1768731476372,2.12750315,142.21,142.19,3.11719074]
[1768731478968,2.12750315,142.21,142.16,19.91265104]
[1768731478969,2.12750315,142.2,142.18,3.14773565]
[1768731479207,5.1993718,142.2,142.17,3.14773565]
[1768731480411,5.1993718,142.19,142.17,3.14773565]
[1768731480570,5.1993718,142.19,142.16,3.34773565]
[1768731481612,12.23229612,142.19,142.16,3.34773565]
[1768731484306,2.12750315,142.18,142.16,3.34773565]
[1768731484526,2.12750315,142.18,142.15,7.03467346]
[1768731484527,2.12750315,142.17,142.15,3.14773565]
[1768731486204,9.16148902,142.17,142.15,3.14773565]
[1768731488208,9.11988997,142.17,142.15,3.14773565]
[1768731503102,12.30685701,142.17,142.14,3.52369147]
[1768731503305,9.11988997,142.17,142.14,0.2]
[1768731503512,12.30685701,142.17,142.14,3.52369147]
[1768731506712,2.12750315,142.16,142.14,3.52369147]
[1768731506919,9.16186568,142.16,142.14,3.52369147]
[1768731527742,7.03436253,142.16,142.14,3.52369147]
[1768731528351,2.12750315,142.18,142.14,3.52369147]
[1768731529417,7.93383273,142.17,142.14,3.52369147]
[1768731533839,10.06133588,142.17,142.14,3.52369147]
[1768731534821,7.93383273,142.17,142.14,3.52369147]
[1768731541234,10.06253674,142.17,142.14,3.52369147]
[1768731544545,7.03340366,142.18,142.15,3.25286845]
[1768731544754,24.58896781,142.2,142.15,2.12870401]
[1768731544755,16.37164938,142.2,142.15,2.12870401]
[1768731544946,5.46449707,142.2,142.16,3.25286845]
[1768731545523,12.49699696,142.2,142.16,3.25286845]
[1768731546329,10.36829295,142.2,142.16,3.25286845]
[1768731549654,7.03249989,142.2,142.17,3.25286845]
[1768731572494,10.38756526,142.2,142.17,3.25286845]
[1768731573154,7.03249989,142.2,142.18,3.22836335]
[1768731575172,10.38709875,142.21,142.18,10.26165851]
[1768731575366,7.03203338,142.21,142.19,3.22836335]
[1768731577360,10.29708194,142.21,142.19,3.22836335]
[1768731577565,12.42578595,142.21,142.18,3.31762175]
[1768731577760,3.26504856,142.2,142.18,3.31762175]
[1768731578274,12.42578595,142.21,142.18,3.31762175]
[1768731581390,10.29708194,142.21,142.18,3.31762175]
[1768731581589,12.42578595,142.21,142.18,3.31762175]
[1768731584987,10.29708194,142.21,142.18,3.31762175]
[1768731585176,12.42578595,142.21,142.18,3.31762175]
[1768731595294,12.42464711,142.21,142.18,3.31762175]
[1768731595790,9.15959855,142.21,142.18,3.31762175]
[1768731596100,10.26966703,142.21,142.18,3.31762175]
[1768731597392,12.39676617,142.22,142.19,3.27101737]
[1768731598887,9.15913252,142.22,142.19,3.27101737]
[1768731599087,12.39676617,142.22,142.19,3.27101737]
[1768731599698,3.23763365,142.21,142.19,3.27101737]
[1768731601386,12.39676617,142.22,142.19,3.27101737]
[1768731601587,3.23763365,142.22,142.2,3.27101737]
[1768731602604,3.23763365,142.22,142.19,10.30378441]
[1768731602788,12.39661415,142.22,142.19,3.27101737]
[1768731606101,3.23763365,142.21,142.18,10.30414879]
[1768731606300,5.36519882,142.21,142.18,10.30414879]
[1768731606906,3.23763365,142.21,142.18,10.30414879]
[1768731607109,5.36519882,142.21,142.18,10.30414879]
[1768731607581,5.36519882,142.21,142.18,3.27101737]
[1768731607893,12.39707298,142.21,142.18,3.27101737]
[1768731609503,3.23763365,142.21,142.18,10.3043021]
[1768731609682,12.39674119,142.22,142.19,3.27101737]
[1768731610202,10.26917602,142.22,142.19,3.27101737]
[1768731610427,12.39674119,142.22,142.19,3.27101737]
[1768731618914,12.39674119,142.22,142.19,10.30381049]
[1768731618915,10.26917602,142.22,142.19,10.30381049]
[1768731620919,12.39674119,142.22,142.19,10.30381049]
[1768731624016,10.26917602,142.22,142.19,10.30381049]
[1768731624317,12.39674119,142.22,142.19,10.30381049]
[1768731625444,10.35061852,142.23,142.2,3.05527824]
[1768731625594,5.4472973,142.23,142.2,3.05527824]
[1768731626416,10.34982502,142.25,142.21,3.05527824]
[1768731627116,12.47739019,142.25,142.21,3.05527824]
[1768731627498,12.47739019,142.25,142.21,10.08698533]
[1768731630217,10.34982502,142.25,142.22,3.05527824]
[1768731630426,3.31973213,142.24,142.22,3.05527824]
[1768731632616,3.31973213,142.25,142.23,3.05527824]
[1768731632944,7.02957407,142.26,142.23,3.05527824]
[1768731632945,10.3493062,142.26,142.23,3.05527824]
[1768731634429,27.87637573,142.27,142.23,10.08606597]
[1768731634606,27.87637573,142.27,142.24,3.05527824]
[1768731636521,12.47637573,142.27,142.24,3.05527824]
[1768731636823,9.1566436,142.27,142.24,3.05527824]
[1768731637398,7.02907843,142.27,142.24,3.05527824]
[1768731639308,7.02907843,142.27,142.25,3.19909162]
[1768731641919,3.14146437,142.27,142.25,3.19909162]
[1768731644036,10.17036064,142.27,142.25,3.19909162]
[1768731646610,3.14146437,142.26,142.22,3.19909162]
[1768731646822,3.14146437,142.26,142.22,2.12756517]
[1768731647030,3.14146437,142.26,142.23,3.19909162]
[1768731649340,3.14146437,142.26,142.23,10.22976944]
[1768731651239,3.14146437,142.25,142.23,3.19909162]
[1768731651446,3.14146437,142.25,142.22,10.23028383]
[1768731653526,3.14146437,142.25,142.23,3.29068507]
[1768731653938,12.21409358,142.26,142.23,3.29068507]
[1768731656643,12.21409358,142.26,142.23,10.3215379]
[1768731657338,12.21265859,142.26,142.23,10.3215379]
[1768731657637,5.18317945,142.26,142.23,10.3215379]
[1768731657827,3.05704927,142.26,142.23,10.3215379]
[1768731669249,3.05704927,142.26,142.23,10.2915379]
[1768731695566,3.32680156,142.27,142.24,3.16391688]
[1768731695751,3.32680156,142.27,142.24,5.29004706]
[1768731696265,3.32680156,142.27,142.24,3.16391688]
[1768731697771,3.32680156,142.27,142.24,12.32017652]
[1768731701377,3.32680156,142.27,142.24,10.19404634]
[1768731701575,3.32680156,142.27,142.24,12.32017652]
[1768731702074,3.32680156,142.27,142.24,10.19404634]
[1768731713972,10.35578515,142.27,142.24,10.19404634]
[1768731714594,10.35578515,142.27,142.24,3.16391688]
[1768731717608,3.21139627,142.26,142.24,3.16391688]
[1768731721114,10.24037986,142.27,142.24,3.16391688]
[1768731723216,3.21139627,142.26,142.24,3.16391688]
[1768731759755,24.60059314,142.27,142.24,3.16391688]
[1768731759939,17.57160955,142.27,142.25,3.11987249]
[1768731770795,20.69997037,142.27,142.24,10.15022877]
[1768731771299,3.12836082,142.27,142.25,3.11987249]
[1768731771495,12.28283444,142.28,142.25,3.11987249]
[1768731771702,17.57904392,142.27,142.25,3.11987249]
[1768731774614,17.57904392,142.27,142.24,7.03035628]
[1768731774814,20.82134908,142.27,142.24,10.42692344]
[1768731775008,20.82134908,142.27,142.25,3.39656716]
[1768731775209,17.57904392,142.27,142.25,3.39656716]
[1768731776818,9.15478227,142.27,142.25,3.39656716]
[1768731777316,9.15478227,142.27,142.24,3.39656716]
[1768731777317,19.42744371,142.27,142.24,3.39656716]
[1768731779311,19.42751452,142.27,142.24,3.39656716]
[1768731780692,17.30158467,142.27,142.24,10.42690909]
[1768731781016,10.27266144,142.27,142.24,10.42690909]
[1768731783511,10.27266144,142.27,142.24,7.03034193]
[1768731783821,77.5,142.29,142.25,2.12549151]
[1768731783822,10.27039505,142.29,142.25,2.12549151]
[1768731784113,10.27039505,142.29,142.27,2.12551344]
[1768731784114,21.09778824,142.29,142.27,2.12551344]
[1768731784415,3.24230516,142.3,142.27,2.12551344]
[1768731785497,3.24230516,142.3,142.27,9.15430151]
[1768731786405,9.15303256,142.31,142.28,2.12555654]
[1768731786712,7.02710271,142.31,142.28,2.12555654]
[1768731789019,9.15303256,142.31,142.28,2.12555654]
[1768731789495,12.39533772,142.31,142.28,2.12555654]
[1768731798042,10.26988777,142.3,142.27,2.40143995]
[1768731798831,7.02758261,142.3,142.27,2.40143995]
[1768731800925,10.26929021,142.31,142.28,2.45288629]
[1768731803315,12.39522006,142.31,142.28,2.45288629]
[1768731803521,3.29591288,142.3,142.27,9.58113269]
[1768731804535,12.44882778,142.31,142.28,2.57641989]
[1768731805926,10.32289793,142.31,142.28,2.57641989]
[1768731806119,12.44882778,142.31,142.28,2.57641989]
[1768731807230,10.32289793,142.31,142.28,2.57641989]
[1768731810839,33.64033662,142.32,142.29,2.71554274]
[1768731811023,10.42255175,142.32,142.29,2.71554274]
[1768731811510,0.1,142.32,142.29,2.12592985]
[1768731811711,0.1,142.32,142.3,2.73780671]
[1768731815932,7.1264546,142.32,142.3,2.73780671]
[1768731819535,10.7617647,142.32,142.29,2.92702037]
[1768731820620,3.6353101,142.31,142.28,12.10097448]
[1768731822440,7.0948399,142.32,142.29,3.54906115]
[1768731823531,0.0683853,142.32,142.29,3.54906115]
[1768731824344,3.7036954,142.32,142.29,3.54906115]
[1768731824544,10.73038672,142.32,142.29,3.54906115]
[1768731825443,10.73038672,142.32,142.25,7.02945239]
[1768731825444,3.6353101,142.3,142.25,7.02945239]
[1768731825645,3.6353101,142.3,142.25,9.15538224]
[1768731825945,3.6353101,142.29,142.25,9.15538224]
[1768731827141,10.66330704,142.29,142.25,9.15538224]
[1768731827443,10.66330704,142.29,142.26,3.16571426]
[1768731830852,10.66330704,142.29,142.25,9.15538224]
[1768731830853,3.6353101,142.28,142.25,9.15538224]
[1768731831054,3.57531011,142.28,142.25,10.39905082]
[1768731831255,3.51531012,142.28,142.25,10.39905082]
[1768731831648,3.0837952,142.28,142.25,10.39905082]
[1768731833232,3.0837952,142.28,142.25,12.52498067]
[1768731837644,3.87345156,142.29,142.26,3.6242168]
[1768731838563,3.87345156,142.29,142.26,10.65358446]
[1768731844474,3.87345156,142.27,142.23,3.6242168]
[1768731844652,3.87345156,142.26,142.23,10.65469615]
[1768731848467,3.81345151,142.26,142.23,10.65469615]
[1768731850469,3.75345151,142.26,142.23,10.65469615]
[1768731852571,3.75345151,142.26,142.23,7.03047935]
[1768731853154,3.87345156,142.25,142.22,10.65550662]
[1768731853458,3.81345155,142.25,142.22,10.65550662]
[1768731855467,3.75345151,142.25,142.22,7.03128982]
[1768731856071,3.75345151,142.25,142.22,10.65550662]
[1768731856259,3.69345149,142.25,142.22,10.65550662]
[1768731856853,3.63345149,142.25,142.22,10.65550662]
[1768731858575,2.12507175,142.24,142.2,3.6242168]
[1768731858774,3.87345156,142.22,142.19,10.65688645]
[1768731862883,3.81345154,142.22,142.19,10.65688645]
[1768731864568,2.12507175,142.23,142.19,7.03266965]
[1768731864786,3.93662925,142.21,142.19,7.03266965]
[1768731864985,3.87662924,142.21,142.19,7.03266965]
[1768731865785,2.12507175,142.23,142.19,11.17065241]
[1768731866883,3.93662925,142.22,142.19,11.17065241]
[1768731872392,3.93662925,142.24,142.21,6.26305451]
[1768731872596,3.93662925,142.24,142.22,4.13798276]
[1768731872802,3.93662925,142.25,142.22,4.13798276]
[1768731873292,3.93662925,142.25,142.22,6.26305451]
[1768731873470,3.93662925,142.25,142.22,13.294412]
[1768731874095,3.93662925,142.25,142.23,2.12507175]
[1768731874588,3.93662925,142.26,142.23,6.26305451]
[1768731875274,3.93662925,142.26,142.23,4.13798276]
[1768731875477,3.93662925,142.26,142.23,6.26305451]
[1768731875674,3.93662925,142.26,142.23,11.16871283]
[1768731881799,3.89008323,142.25,142.22,11.26141341]
[1768731883604,3.89008323,142.25,142.22,7.03118845]
[1768731883790,3.89008323,142.25,142.22,11.26141341]
[1768731889012,6.01515498,142.25,142.22,11.26141341]
[1768731889186,3.89008323,142.25,142.22,11.26141341]
[1768731895815,3.89008323,142.25,142.21,4.08500526]
[1768731899714,3.89008323,142.25,142.22,7.03135986]
[1768731901824,6.01515498,142.25,142.22,4.08500526]
[1768731903324,4.17382545,142.24,142.22,11.11615626]
[1768731903514,4.11382545,142.24,142.22,11.11615626]
[1768731906621,4.11382545,142.24,142.21,11.11685955]
[1768731907422,2.12635271,142.25,142.21,11.11685955]
[1768731907423,6.30017816,142.25,142.22,4.08500526]
[1768731909723,6.30017816,142.25,142.22,11.11611821]
[1768731911227,4.17382545,142.25,142.22,11.11611821]
[1768731911429,6.30017816,142.25,142.22,11.11611821]
[1768731925539,4.17382545,142.25,142.22,11.11611821]
[1768731925743,6.30017816,142.25,142.22,11.11611821]
[1768731938052,4.17382545,142.25,142.22,11.11611821]
[1768731938228,6.30017816,142.25,142.22,11.11611821]
[1768731939847,4.17382545,142.25,142.22,11.11611821]
[1768731940231,6.30017816,142.25,142.22,11.11611821]
[1768731942255,4.24486259,142.24,142.21,7.03185429]
[1768731942455,4.24486259,142.24,142.21,11.20937671]
[1768732006952,6.37134644,142.24,142.21,11.20937671]
[1768732007257,2.12648387,142.22,142.2,7.03219349]
[1768732007442,2e-08,142.22,142.2,7.03219349]
[1768732007637,2e-08,142.22,142.19,11.23845475]
[1768732007638,2.12648387,142.22,142.19,11.23845475]
[1768732007844,2.12648385,142.22,142.19,11.23845475]
[1768732008050,2.12648385,142.21,142.19,11.23845475]
[1768732010260,6.19448269,142.21,142.19,7.03252568]
[1768732013861,4.06799884,142.21,142.19,7.03252568]
[1768732014057,6.19448269,142.21,142.19,7.03252568]
[1768732016867,6.19448269,142.21,142.18,5.89372907]
[1768732018061,6.19448269,142.21,142.18,12.92694041]
[1768732019756,4.21105511,142.2,142.18,8.72101134]
[1768732020059,4.15105507,142.2,142.18,12.87681062]
[1768732020265,2.12648385,142.21,142.18,12.87681062]
[1768732021853,6.33753896,142.21,142.18,12.87681062]
[1768732027377,6.33875445,142.21,142.18,12.87681062]
[1768732034678,13.37064587,142.21,142.18,12.87681062]
[1768732035981,6.33875445,142.21,142.18,12.87681062]
[1768732048612,2.12769934,142.19,142.17,4.10378624]
[1768732049112,6.55173047,142.2,142.17,4.10378624]
[1768732049615,6.55173047,142.2,142.17,11.13758348]
[1768732051911,4.42403113,142.2,142.17,11.13758348]
[1768732052216,6.55173047,142.2,142.17,11.13758348]
[1768732055111,11.45558597,142.22,142.18,4.10378624]
[1768732055298,2.12769934,142.21,142.18,4.10378624]
[1768732055505,6.55173047,142.21,142.18,4.10378624]
[1768732059321,11.45601014,142.21,142.18,4.10378624]
[1768732059521,13.58370948,142.21,142.18,4.10378624]
[1768732059722,2.12769934,142.2,142.18,4.10378624]
[1768732061324,7.03121578,142.23,142.18,4.10378624]
[1768732061509,4.29312866,142.23,142.2,4.45296281]
[1768732062516,4.29312866,142.23,142.2,11.48497222]
[1768732063005,6.420828,142.23,142.2,11.48497222]
[1768732063207,4.29312866,142.23,142.2,11.48497222]
[1768732063407,6.420828,142.23,142.2,11.48497222]
[1768732065727,4.29312866,142.23,142.2,11.48497222]
[1768732070029,4.29312866,142.23,142.21,4.45296281]
[1768732070220,2.12769934,142.24,142.21,4.45296281]
[1768732070221,6.420828,142.24,142.21,4.45296281]
[1768732070838,4.29312866,142.24,142.21,4.45296281]
[1768732073241,4.29312866,142.24,142.21,11.48463292]
[1768732082965,6.20064796,142.24,142.21,11.48463292]
[1768732083548,4.07294862,142.23,142.21,11.48463292]
[1768732085773,2.12769934,142.22,142.18,4.4761121]
[1768732085961,4.07294862,142.2,142.17,11.50964414]
[1768732086473,6.20064796,142.2,142.17,11.50964414]
[1768732087368,4.07294862,142.2,142.17,11.50964414]
[1768732088850,4.07294862,142.2,142.18,4.4761121]
[1768732089370,6.20073409,142.21,142.18,4.4761121]
[1768732089576,2.12778547,142.2,142.18,4.4761121]
[1768732092377,6.20073409,142.2,142.17,7.03359798]
[1768732092557,4.07294862,142.19,142.17,7.03359798]
[1768732092759,4.01294863,142.19,142.17,7.03377583]
[1768732093076,4.01294863,142.19,142.17,11.50988793]
[1768732094178,3.95294864,142.19,142.17,11.50988793]
[1768732094371,3.95294864,142.19,142.15,11.51093447]
[1768732094570,2.12778547,142.19,142.15,11.51093447]
[1768732096260,6.20073409,142.19,142.15,11.51093447]
[1768732100384,4.07294862,142.19,142.15,11.51093447]
[1768732100584,6.20073409,142.19,142.15,11.51093447]
[1768732102083,4.07294862,142.19,142.16,7.03425853]
[1768732102271,13.59227425,142.2,142.17,4.4945167]
[1768732102679,4.43208001,142.19,142.16,11.52877523]
[1768732106291,4.43208001,142.19,142.17,4.4945167]
[1768732109293,4.43208001,142.19,142.17,11.52831757]
[1768732110497,6.55986548,142.2,142.17,11.52831757]
[1768732112099,4.43208001,142.2,142.17,11.52831757]
[1768732112399,6.55986548,142.2,142.17,11.52831757]
[1768732112593,4.43208001,142.2,142.17,11.52831757]
[1768732112901,6.55986548,142.22,142.18,4.4945167]
[1768732113219,28.99090189,142.23,142.19,4.4945167]
[1768732113399,13.59090189,142.23,142.19,4.4945167]
[1768732113802,11.46311642,142.23,142.19,11.52732986]
[1768732113989,9.15882188,142.23,142.19,11.52732986]
[1768732114194,4.43208001,142.22,142.19,11.52732986]
[1768732127113,6.55986548,142.22,142.19,11.52732986]
[1768732128517,4.17108486,142.21,142.19,4.4945167]
[1768732129215,4.17108486,142.21,142.18,11.36572947]
[1768732132114,4.2781028,142.2,142.17,7.03383273]
[1768732132418,4.2781028,142.2,142.17,11.49089484]
[1768732134418,4.2781028,142.2,142.18,11.49039979]
[1768732135621,4.2781028,142.2,142.17,7.03383273]
[1768732135804,4.2781028,142.2,142.17,11.49089484]
[1768732149927,4.21810281,142.2,142.17,11.49089484]
[1768732153030,4.21810281,142.2,142.18,4.45706211]
[1768732155332,4.21810281,142.2,142.17,11.49089484]
[1768732175249,1.65390836,142.2,142.17,11.49089484]
[1768732177133,1.59390837,142.2,142.17,11.49089484]
[1768732190458,1.59390837,142.2,142.18,4.43995878]
[1768732197133,1.59390837,142.2,142.17,4.21680552]
[1768732198343,1.59390837,142.2,142.17,7.03364068]
[1768732198540,1.59390837,142.2,142.18,4.21680552]
[1768732204048,1.59390837,142.2,142.17,11.2504462]
[1768732234580,4.32969254,142.21,142.18,4.33265765]
[1768732234884,6.45746041,142.24,142.18,2.12776787]
[1768732235186,4.32969254,142.23,142.19,4.33265765]
[1768732236290,6.45746041,142.23,142.2,4.09267789]
[1768732241292,13.48840149,142.23,142.2,4.09267789]
[1768732242392,11.36063362,142.23,142.2,4.09267789]
[1768732245995,7.03094108,142.23,142.2,4.09267789]
[1768732246193,4.24975087,142.22,142.2,4.09267789]
[1768732248889,11.28069195,142.23,142.2,4.09267789]
[1768732253115,2.12776787,142.22,142.18,4.45418479]
[1768732253416,6.47440649,142.22,142.18,4.45418479]
[1768732254805,4.34663862,142.22,142.18,4.45418479]
[1768732255508,11.37845586,142.22,142.18,4.45418479]
[1768732260411,4.34663862,142.21,142.17,4.45418479]
[1768732261191,4.34663862,142.2,142.17,4.45418479]
[1768732261510,4.28663863,142.2,142.17,4.45418479]
[1768732263410,4.28663863,142.2,142.16,9.16209538]
[1768732263411,11.37948199,142.19,142.16,4.45418479]
[1768732263602,7.03284337,142.19,142.16,4.45418479]
[1768732265794,6.97284338,142.19,142.16,4.45418479]
[1768732266515,13.50694236,142.2,142.17,4.45418479]
[1768732267317,11.37917449,142.2,142.17,4.45418479]
[1768732267513,13.50694236,142.2,142.17,4.45418479]
[1768732271324,13.50709851,142.2,142.17,4.45418479]
[1768732278619,9.16045989,142.2,142.17,4.45418479]
[1768732278811,6.47456264,142.19,142.17,4.45418479]
[1768732279012,6.47456264,142.19,142.16,11.48851107]
[1768732281529,6.47456264,142.19,142.17,4.45418479]
[1768732283629,6.47456264,142.19,142.16,11.25293894]
[1768732285534,4.34663862,142.19,142.16,11.25293894]
[1768732290235,4.34663862,142.19,142.17,4.21864482]
[1768732294339,13.22682404,142.2,142.17,4.21864482]
[1768732300618,11.1608362,142.19,142.15,11.27903251]
[1768732301042,6.25574341,142.18,142.15,4.24435132]
[1768732301239,2.12792402,142.21,142.17,4.24435132]
[1768732301540,4.12781939,142.2,142.17,4.24435132]
[1768732302242,4.12781939,142.2,142.17,11.27785422]
[1768732305643,11.16012842,142.21,142.18,4.24435132]
[1768732305843,7.03230903,142.21,142.15,24.62121824]
[1768732306040,4.12781939,142.2,142.16,4.24435132]
[1768732308149,4.12781939,142.2,142.16,11.27829682]
[1768732308384,4.12781939,142.2,142.17,4.24435132]
[1768732310550,11.16018737,142.2,142.17,4.24435132]
[1768732317864,6.55884761,142.21,142.18,4.44827636]
[1768732321158,13.59090102,142.21,142.18,4.44827636]
[1768732322345,11.462977,142.21,142.18,4.44827636]
[1768732327072,7.03086549,142.23,142.2,4.44827636]
[1768732327245,7.03086549,142.23,142.19,7.03284337]
[1768732327246,4.43092359,142.22,142.19,4.44827636]
[1768732327956,4.43092359,142.22,142.17,11.48199326]
[1768732328163,4.43092359,142.22,142.18,4.44827636]
[1768732329150,7.03185429,142.21,142.18,4.44827636]
[1768732329357,4.43092359,142.2,142.17,4.44827636]
[1768732335668,4.43092359,142.2,142.17,11.48198969]
[1768732348057,4.43092359,142.2,142.17,11.38425123]
[1768732348663,4.43092359,142.2,142.18,4.3505379]
[1768732349379,4.33415402,142.21,142.18,4.3505379]
[1768732350079,4.33415402,142.21,142.18,11.38360754]
[1768732350665,7.03153759,142.22,142.19,4.3505379]
[1768732350870,11.36503712,142.23,142.19,4.3505379]
[1768732351268,4.33415402,142.22,142.19,4.3505379]
[1768732352186,4.33415402,142.22,142.19,11.38330108]
[1768732357387,11.36552577,142.22,142.19,11.38330108]
[1768732358292,11.36552577,142.22,142.19,4.3505379]
[1768732364097,7.03137175,142.22,142.19,4.3505379]
[1768732367899,4.28504388,142.22,142.19,4.3505379]
[1768732369204,11.31661589,142.22,142.19,4.3505379]
[1768732381813,11.52001839,142.23,142.2,4.09774178]
[1768732382513,7.03103123,142.23,142.2,4.09774178]
[1768732384215,7.03103123,142.23,142.18,4.09774178]
[1768732384216,4.48898716,142.22,142.18,4.09774178]
[1768732384399,1.91903072,142.22,142.15,4.09774178]
[1768732385715,7.03185429,142.21,142.17,4.09774178]
[1768732386311,4.48898716,142.2,142.17,4.09774178]
[1768732386922,11.52139929,142.2,142.17,4.09774178]
[1768732389705,11.4613993,142.2,142.17,4.09774178]
[1768732391095,32.97716374,142.23,142.18,4.09774178]
[1768732391401,7.03135986,142.22,142.18,4.09774178]
[1768732391613,11.52034702,142.22,142.18,4.09774178]
[1768732395918,11.52034702,142.22,142.19,4.09774178]
[1768732396220,11.52002537,142.23,142.19,4.09774178]
[1768732402928,11.52002537,142.23,142.2,4.23921172]
[1768732409232,7.03103821,142.23,142.2,4.23921172]
[1768732410931,11.51204288,142.24,142.21,4.23921172]
[1768732421443,4.39493243,142.23,142.2,4.46244593]
[1768732423938,11.42584208,142.23,142.2,4.46244593]
[1768732425447,11.42584208,142.23,142.2,11.49478668]
[1768732425637,11.42584208,142.23,142.2,4.46244593]
[1768732434755,4.35548696,142.24,142.2,4.46244593]
[1768732435057,4.35548696,142.24,142.21,4.46059491]
[1768732436539,4.35548696,142.24,142.21,11.49240155]
[1768732441253,11.38506286,142.26,142.22,4.46059491]
[1768732443348,11.38506286,142.26,142.23,4.46059491]
[1768732449969,24.60170419,142.27,142.23,4.46059491]
[1768732450369,28.95719115,142.27,142.23,4.46059491]
[1768732451676,11.38499381,142.26,142.23,4.46059491]
[1768732455354,11.38437569,142.27,142.24,4.46059491]
[1768732455669,11.38437569,142.27,142.24,4.43059491]
[1768732455879,11.38395132,142.28,142.24,4.43059491]
[1768732456954,11.38395132,142.28,142.24,11.4609472]
[1768732459379,11.38395132,142.28,142.25,4.46059491]
[1768732459557,11.38395132,142.28,142.25,4.43059491]
[1768732463961,4.05724385,142.27,142.25,4.43059491]
[1768732464468,24.59826962,142.29,142.25,4.43059491]
[1768732464469,4.05724385,142.28,142.25,4.40211923]
[1768732465488,11.08605451,142.28,142.25,4.40211923]
[1768732470599,7.02794863,142.29,142.26,4.36477094]
[1768732470969,7.02794863,142.29,142.26,4.33477094]
[1768732480892,11.08480502,142.3,142.27,4.41634508]
[1768732481078,11.08480502,142.3,142.27,4.38634508]
[1768732487387,15.4,142.31,142.28,4.41634508]
[1768732487388,7.02691307,142.31,142.28,4.41634508]
[1768732487705,11.26818922,142.31,142.28,4.41634508]
[1768732489208,21.87691024,142.32,142.28,4.41634508]
[1768732490203,17.63563409,142.32,142.28,4.41634508]
[1768732490397,0.0683853,142.32,142.29,4.41634508]
[1768732490603,0.0683853,142.32,142.29,4.38634508]
[1768732507021,0.0683853,142.32,142.3,4.25620892]
[1768732507313,7.02564704,142.34,142.31,4.25620892]
[1768732507521,10.87406319,142.35,142.32,4.25620892]
[1768732510301,10.87406319,142.35,142.32,11.28256418]
[1768732519228,10.87406319,142.35,142.32,4.25620892]
[1768732523633,7.12453971,142.36,142.33,4.42883178]
[1768732524313,11.26844795,142.36,142.33,4.42883178]
[1768732525331,7.12453971,142.36,142.33,4.42883178]
[1768732525533,11.26844795,142.36,142.33,11.45471548]
[1768732525827,11.26844795,142.36,142.33,4.42883178]
[1768732526925,7.12453971,142.36,142.33,4.42883178]
[1768732529354,0.1,142.36,142.34,4.42883178]
[1768732530731,4.24390824,142.36,142.32,4.42883178]
[1768732532513,11.26838605,142.36,142.32,11.4550474]
[1768732534331,11.26838605,142.36,142.33,4.42883178]
[1768732540439,4.18052711,142.35,142.31,21.88378262]
[1768732540827,4.18052711,142.35,142.32,4.317092]
[1768732544646,4.18052711,142.35,142.32,11.34346833]
[1768732546346,4.18052711,142.35,142.32,7.02637633]
[1768732546546,4.18052711,142.35,142.29,11.34457322]
[1768732546547,4.18052711,142.34,142.29,11.34457322]
[1768732546724,7.02592566,142.33,142.29,11.34457322]
[1768732546925,4.18052711,142.32,142.29,11.34457322]
[1768732553347,4.12052712,142.32,142.29,11.34457322]
[1768732555454,4.31165183,142.33,142.3,4.10650412]
[1768732557959,4.31165183,142.32,142.3,4.10650412]
[1768732558360,4.31165183,142.32,142.28,11.13443949]
[1768732558576,4.31165183,142.31,142.27,11.1352279]
[1768732559956,4.31165183,142.3,142.27,11.1352279]
[1768732560354,4.25165184,142.3,142.27,11.1352279]
[1768732560868,4.25165184,142.3,142.25,4.10650412]
[1768732561040,4.25165184,142.3,142.23,4.10650412]
[1768732562059,7.02790076,142.29,142.24,11.13687532]
[1768732562450,4.31165183,142.28,142.25,4.10650412]